bitfinex/quotes_SOLUSD_20220104
["timestamp","ask_amount","ask_price","bid_price","bid_amount"]
[1641260438759,11.79575461,168.56,168.45,2.0238]
[1641260439260,12.05575461,168.56,168.45,2.0238]
[1641260439460,12.05575461,168.56,168.45,24.9376]
[1641260439763,3.23575461,168.56,168.45,24.9376]
[1641260440162,3.23575461,168.56,168.45,25.4376]
[1641260440462,3.49575461,168.56,168.45,25.4376]
[1641260441263,3.23575461,168.56,168.45,25.4376]
[1641260443562,3.23575461,168.56,168.45,25.1776]
[1641260443764,3.23575461,168.56,168.45,24.6776]
[1641260444362,3.49575461,168.56,168.45,24.6776]
[1641260444562,12.05575461,168.56,168.45,24.6776]
[1641260444761,13.00323729,168.55,168.45,24.6776]
[1641260444964,13.76323729,168.55,168.45,24.9376]
[1641260446667,15.02843729,168.55,168.45,24.9376]
[1641260448776,8.56,168.54,168.45,24.9376]
[1641260448975,8.82,168.54,168.45,24.9376]
[1641260449177,9.32,168.54,168.45,24.9376]
[1641260452782,9.06,168.54,168.45,24.9376]
[1641260453184,0.5,168.54,168.45,24.9376]
[1641260453382,13.50323729,168.55,168.45,25.4376]
[1641260453582,13.50323729,168.55,168.45,24.9376]
[1641260454385,13.50323729,168.55,168.45,25.4376]
[1641260454602,13.76323729,168.55,168.45,25.4376]
[1641260454801,13.76323729,168.55,168.45,24.9376]
[1641260456701,22.32323729,168.55,168.45,24.9376]
[1641260457904,22.32323729,168.55,168.45,25.4376]
[1641260459104,22.32323729,168.55,168.45,24.9376]
[1641260459506,22.32323729,168.55,168.45,25.4376]
[1641260459706,22.32323729,168.55,168.45,24.9376]
[1641260460106,22.32323729,168.55,168.45,25.4376]
[1641260462310,22.32323729,168.55,168.45,24.9376]
[1641260464009,22.32323729,168.55,168.45,25.4376]
[1641260464209,22.32323729,168.55,168.45,24.9376]
[1641260468212,22.32323729,168.55,168.45,25.4376]
[1641260469012,22.06323729,168.55,168.45,25.4376]
[1641260469411,22.06323729,168.55,168.45,24.9376]
[1641260469912,22.06323729,168.55,168.45,23.6738]
[1641260470113,22.06323729,168.55,168.41,80.3899]
[1641260470312,24.3246,168.54,168.42,24.8178]
[1641260470513,33.1446,168.54,168.42,24.8178]
[1641260470718,33.6446,168.54,168.42,24.8178]
[1641260471614,33.6446,168.54,168.42,25.0778]
[1641260472016,33.3846,168.54,168.42,25.0778]
[1641260472215,9.06,168.54,168.42,25.5778]
[1641260473115,9.06,168.54,168.42,27.00449368]
[1641260473514,2.73575461,168.56,168.42,35.56449368]
[1641260473715,3.23575461,168.56,168.42,35.56449368]
[1641260474919,498.79105831,168.58,168.42,35.56449368]
[1641260475120,490.23105831,168.58,168.43,166.24]
[1641260475318,490.23105831,168.58,168.44,67.8]
[1641260475518,490.23105831,168.58,168.45,24.3219]
[1641260475719,490.23105831,168.58,168.46,8.56]
[1641260475923,490.23105831,168.58,168.48,23.75659656]
[1641260476121,2.8083775,168.6,168.49,8.56]
[1641260476323,2.8083775,168.6,168.5,23.3211]
[1641260476527,2.8083775,168.6,168.5,33.4325]
[1641260476721,2.8083775,168.6,168.5,33.9325]
[1641260477321,2.8083775,168.6,168.5,33.4325]
[1641260477521,3.3083775,168.6,168.5,33.9325]
[1641260481132,2.8083775,168.6,168.5,33.9325]
[1641260481329,3.3083775,168.6,168.5,33.9325]
[1641260482531,3.3083775,168.6,168.5,33.6725]
[1641260482732,8.56,168.59,168.5,24.6125]
[1641260482932,9.06,168.59,168.5,24.6125]
[1641260483133,9.32,168.59,168.5,24.6125]
[1641260483332,9.32,168.59,168.48,23.75659656]
[1641260484334,9.32,168.59,168.47,26.2407]
[1641260484534,9.32,168.59,168.47,26.5007]
[1641260485836,9.32,168.59,168.47,0.26]
[1641260486037,9.32,168.59,168.46,0.26]
[1641260486238,24.222,168.58,168.46,0.26]
[1641260486435,8.56,168.57,168.41,111.3836]
[1641260486637,23.1533,168.56,168.41,111.3836]
[1641260486839,23.6533,168.56,168.42,24.6921804]
[1641260487038,23.9133,168.56,168.42,24.9521804]
[1641260487239,23.9133,168.56,168.43,23.0291]
[1641260487440,23.9133,168.56,168.43,23.5291]
[1641260487639,23.9133,168.56,168.43,23.7891]
[1641260488459,23.9133,168.56,168.43,25.1107]
[1641260491161,23.4133,168.56,168.43,26.53739368]
[1641260491664,23.1533,168.56,168.43,26.53739368]
[1641260491863,23.6533,168.56,168.43,25.1107]
[1641260493162,0.5,168.56,168.43,25.1107]
[1641260493365,0.76,168.57,168.43,33.6707]
[1641260493866,0.26,168.57,168.43,33.6707]
[1641260494064,25.1342,168.58,168.43,33.6707]
[1641260495065,23.5349,168.58,168.43,35.09739368]
[1641260495265,0.5,168.58,168.43,35.09739368]
[1641260495465,3.3083775,168.6,168.43,35.09739368]
[1641260496269,3.3083775,168.6,168.43,34.83739368]
[1641260496868,3.5683775,168.6,168.43,34.83739368]
[1641260497068,3.3083775,168.6,168.43,34.83739368]
[1641260497267,3.3083775,168.6,168.43,41.08339368]
[1641260497467,3.3083775,168.6,168.43,41.34339368]
[1641260499774,3.3083775,168.6,168.43,35.09739368]
[1641260500780,3.3083775,168.6,168.43,43.99739368]
[1641260501077,3.3083775,168.6,168.43,103.23739368]
[1641260501477,3.3083775,168.6,168.43,94.33739368]
[1641260502577,1.8872812,168.6,168.44,68.1396]
[1641260502778,1.8872812,168.6,168.45,8.56]
[1641260502979,1.8872812,168.6,168.46,95.4969]
[1641260503177,1.8872812,168.6,168.47,8.56]
[1641260503376,1.8872812,168.6,168.48,24.346]
[1641260503580,1.8872812,168.6,168.49,30.28882907]
[1641260503778,1.8872812,168.6,168.5,22.5277]
[1641260503978,1.8872812,168.6,168.5,22.7877]
[1641260504177,1.8872812,168.6,168.5,23.2877]
[1641260504978,1.8872812,168.6,168.5,24.5596]
[1641260506777,0.5,168.6,168.5,24.5596]
[1641260507005,23.0758,168.61,168.5,24.5596]
[1641260508179,2.27227208,168.6,168.5,24.5596]
[1641260508378,2.77227208,168.6,168.5,24.5596]
[1641260514811,2.77227208,168.6,168.5,24.2996]
[1641260515011,2.27227208,168.6,168.5,24.2996]
[1641260515208,2.77227208,168.6,168.5,24.2996]
[1641260516509,2.77227208,168.6,168.5,24.5596]
[1641260518716,2.77227208,168.6,168.5,24.2996]
[1641260519116,2.77227208,168.6,168.5,23.0277]
[1641260519920,2.77227208,168.6,168.5,22.5277]
[1641260520116,2.77227208,168.6,168.5,23.0277]
[1641260520917,2.77227208,168.6,168.5,24.2716]
[1641260522318,2.77227208,168.6,168.5,23.7716]
[1641260527023,2.77227208,168.6,168.5,22.5277]
[1641260527225,2.77227208,168.6,168.46,73.7842]
[1641260527426,8.56,168.59,168.46,72.5059]
[1641260527826,2.10557803,168.58,168.46,72.5059]
[1641260528025,2.73183517,168.57,168.46,72.5059]
[1641260528426,3.23183517,168.57,168.46,72.5059]
[1641260532233,3.23183517,168.57,168.45,25.061]
[1641260532433,8.56,168.56,168.45,23.7473]
[1641260532934,9.06,168.56,168.42,1.3548]
[1641260533134,23.9171,168.55,168.42,52.17540956]
[1641260533335,2.83572899,168.54,168.42,52.17540956]
[1641260533537,2.83572899,168.54,168.42,52.67540956]
[1641260533735,3.33572899,168.54,168.42,52.67540956]
[1641260536940,3.33572899,168.54,168.42,25.5468]
[1641260538441,3.33572899,168.54,168.42,25.0468]
[1641260538843,3.33572899,168.54,168.42,25.5468]
[1641260539341,3.33572899,168.54,168.42,25.0468]
[1641260540043,3.33572899,168.54,168.42,25.5468]
[1641260540243,3.33572899,168.54,168.42,25.0468]
[1641260540861,3.33572899,168.54,168.42,25.5468]
[1641260541870,3.33572899,168.54,168.42,25.0468]
[1641260543473,1.3393,168.53,168.42,25.0468]
[1641260543674,24.4985,168.53,168.42,25.0468]
[1641260543875,24.9985,168.53,168.42,25.0468]
[1641260544878,24.9985,168.53,168.39,6.1887793]
[1641260545079,2.86981286,168.51,168.38,48.0216]
[1641260545276,11.42981286,168.51,168.38,48.0216]
[1641260545477,24.38647161,168.51,168.38,48.0216]
[1641260545877,22.5872,168.5,168.38,48.0216]
[1641260546076,22.8472,168.5,168.38,48.0216]
[1641260546279,23.0872,168.5,168.38,48.0216]
[1641260546479,2.64431545,168.48,168.38,48.5216]
[1641260546878,3.14431545,168.48,168.38,48.5216]
[1641260547080,2.64431545,168.48,168.38,49.94829368]
[1641260547279,2.64431545,168.48,168.38,58.50829368]
[1641260547479,3.14431545,168.48,168.38,58.50829368]
[1641260549281,0.5,168.48,168.38,58.50829368]
[1641260549482,1.295,168.49,168.38,58.50829368]
[1641260549686,0.5,168.49,168.38,58.50829368]
[1641260549883,23.3472,168.5,168.38,58.50829368]
[1641260550283,2.93804738,168.49,168.38,58.50829368]
[1641260550886,3.43804738,168.49,168.38,58.50829368]
[1641260552513,4.79524738,168.49,168.38,58.50829368]
[1641260553113,4.79524738,168.49,168.38,25.1054]
[1641260553313,4.79524738,168.49,168.38,23.7376]
[1641260553519,13.35524738,168.49,168.38,23.7376]
[1641260553718,13.35524738,168.49,168.35,78.2699]
[1641260553915,24.1728,168.48,168.36,22.8614]
[1641260554415,24.6728,168.48,168.36,22.8614]
[1641260554816,24.6728,168.48,168.36,23.3614]
[1641260555216,2.82202785,168.46,168.36,23.3614]
[1641260555417,4.87354828,168.46,168.36,23.3614]
[1641260555618,4.87354828,168.46,168.35,78.2699]
[1641260555817,4.87354828,168.46,168.35,0.5]
[1641260556020,24.3795,168.45,168.35,0.5]
[1641260556218,24.3795,168.45,168.32,33.4338]
[1641260556419,24.8795,168.45,168.32,33.4338]
[1641260556620,3.05772658,168.43,168.32,33.4338]
[1641260556919,3.55772658,168.43,168.32,30.9338]
[1641260557118,3.05772658,168.43,168.32,32.36049368]
[1641260557419,3.55772658,168.43,168.32,32.36049368]
[1641260557620,3.05772658,168.43,168.32,32.36049368]
[1641260558219,3.05772658,168.43,168.32,30.9338]
[1641260558422,3.55772658,168.43,168.32,30.9338]
[1641260558821,3.05772658,168.43,168.32,32.36049368]
[1641260560322,3.05772658,168.43,168.32,30.9338]
[1641260560925,3.55772658,168.43,168.32,30.9338]
[1641260561124,3.55772658,168.43,168.32,39.4938]
[1641260561924,3.55772658,168.43,168.32,40.92049368]
[1641260562144,3.05772658,168.43,168.32,40.92049368]
[1641260562424,3.55772658,168.43,168.32,40.92049368]
[1641260564728,3.05772658,168.43,168.32,40.92049368]
[1641260565127,25.619,168.45,168.32,40.92049368]
[1641260565329,88.0578,168.47,168.32,46.92049368]
[1641260565527,88.5578,168.47,168.32,46.92049368]
[1641260566132,27.582833,168.46,168.32,46.92049368]
[1641260566330,28.082833,168.46,168.32,40.92049368]
[1641260570436,1.3483,168.45,168.32,40.92049368]
[1641260570838,1.8483,168.45,168.32,40.92049368]
[1641260572237,2.1083,168.45,168.32,40.92049368]
[1641260572637,1.8483,168.45,168.32,41.18049368]
[1641260573038,2.1083,168.45,168.32,41.18049368]
[1641260575742,1.8483,168.45,168.32,41.18049368]
[1641260575943,2.1083,168.45,168.32,41.18049368]
[1641260578048,30.0,168.32,168.29,9.04049655]
[1641260578274,30.0,168.32,168.22,79.8817]
[1641260578475,8.56,168.35,168.2,0.08121775]
[1641260578874,9.32,168.35,168.2,0.08121775]
[1641260579074,9.06,168.35,168.2,0.08121775]
[1641260579272,9.06,168.35,168.21,2.1515455]
[1641260579874,9.06,168.35,168.2,0.08121775]
[1641260580076,76.5187,168.34,168.2,0.08121775]
[1641260580275,11.13871511,168.32,168.2,0.08121775]
[1641260580476,8.56,168.31,168.2,0.08121775]
[1641260580677,16.077,168.31,168.2,0.08121775]
[1641260580875,16.577,168.31,168.2,0.08121775]
[1641260581077,16.837,168.31,168.2,0.08121775]
[1641260581480,9.06,168.31,168.2,0.08121775]
[1641260581674,76.5187,168.34,168.2,8.64121775]
[1641260581876,76.5187,168.34,168.2,15.58421775]
[1641260582474,1.2861,168.36,168.2,25.0895936]
[1641260582676,74.7613,168.36,168.22,2.33818053]
[1641260582879,1.3358,168.35,168.22,2.83818053]
[1641260583076,1.5958,168.35,168.22,3.09818053]
[1641260583275,2.0958,168.35,168.22,3.09818053]
[1641260583477,2.0958,168.35,168.23,1.2391]
[1641260583879,2.0958,168.35,168.23,1.9991]
[1641260584477,1.8358,168.35,168.23,1.9991]
[1641260584877,1.3358,168.35,168.23,1.9991]
[1641260590185,1.3358,168.35,168.25,2.19870482]
[1641260590385,1.3358,168.35,168.25,2.69870482]
[1641260590585,1.3358,168.35,168.25,2.95870482]
[1641260591588,1.3358,168.35,168.25,4.30770482]
[1641260592189,1.3358,168.35,168.25,3.80770482]
[1641260593592,1.3358,168.35,168.25,4.30770482]
[1641260593791,1.3358,168.35,168.25,3.80770482]
[1641260594794,1.3358,168.35,168.25,4.30770482]
[1641260595894,1.3358,168.35,168.25,2.69870482]
[1641260596293,1.8358,168.35,168.25,2.19870482]
[1641260596496,2.0958,168.35,168.25,2.19870482]
[1641260597396,2.0958,168.35,168.25,2.45870482]
[1641260597796,2.0958,168.35,168.25,2.19870482]
[1641260599097,2.0958,168.35,168.25,2.45870482]
[1641260602002,2.0958,168.35,168.2,11.29881775]
[1641260602201,25.77619368,168.34,168.2,0.58121775]
[1641260602403,8.56,168.33,168.2,0.58121775]
[1641260602599,10.24669368,168.33,168.2,0.58121775]
[1641260602800,10.74669368,168.33,168.2,0.08121775]
[1641260602999,24.2422,168.32,168.21,2.63731287]
[1641260603200,25.5676,168.32,168.21,2.63731287]
[1641260603499,27.75429368,168.32,168.21,3.13731287]
[1641260603701,26.3276,168.32,168.21,3.13731287]
[1641260603901,26.3276,168.32,168.21,3.39731287]
[1641260604304,27.49429368,168.32,168.21,3.39731287]
[1641260604529,27.49429368,168.32,168.21,0.76]
[1641260604702,27.49429368,168.32,168.2,0.08121775]
[1641260604901,26.0676,168.32,168.2,0.08121775]
[1641260605506,26.3276,168.32,168.2,2.5085442]
[1641260605904,26.3276,168.32,168.2,3.0085442]
[1641260606904,26.3276,168.32,168.2,3.2685442]
[1641260611510,28.00385277,168.32,168.2,3.2685442]
[1641260612212,26.3276,168.32,168.2,3.2685442]
[1641260616012,26.0676,168.32,168.2,3.2685442]
[1641260617115,26.0676,168.32,168.21,1.2792]
[1641260617520,26.0676,168.32,168.21,2.0392]
[1641260618617,26.0676,168.32,168.21,0.26]
[1641260619017,26.3276,168.32,168.2,3.2685442]
[1641260619315,26.3276,168.32,168.2,0.08121775]
[1641260619541,1.42669368,168.31,168.2,0.08121775]
[1641260619716,8.56,168.3,168.2,0.08121775]
[1641260619920,9.06,168.3,168.2,0.08121775]
[1641260620121,1.42669368,168.29,168.2,0.08121775]
[1641260620320,9.8865,168.28,168.2,0.08121775]
[1641260620520,10.1465,168.28,168.2,0.08121775]
[1641260620721,17.4215,168.28,168.2,0.08121775]
[1641260620921,22.7781,168.27,168.2,0.08121775]
[1641260621322,23.5381,168.27,168.2,0.08121775]
[1641260622824,1.3415,168.26,168.15,2.62544897]
[1641260623022,1.3415,168.26,168.15,2.88544897]
[1641260623223,1.8415,168.26,168.15,3.38544897]
[1641260623424,1.8415,168.26,168.16,23.5527]
[1641260623624,0.5,168.26,168.17,30.75616767]
[1641260623824,23.2781,168.27,168.17,31.25616767]
[1641260624026,22.7781,168.27,168.18,2.52233163]
[1641260624224,23.2781,168.27,168.18,2.52233163]
[1641260624426,23.2781,168.27,168.18,3.28233163]
[1641260625827,23.2781,168.27,168.18,2.78233163]
[1641260626132,23.5381,168.27,168.18,2.78233163]
[1641260626729,23.2781,168.27,168.18,2.78233163]
[1641260632153,23.2781,168.27,168.18,2.52233163]
[1641260632452,23.5381,168.27,168.18,2.52233163]
[1641260632651,23.2781,168.27,168.18,2.52233163]
[1641260633554,23.2781,168.27,168.18,2.78233163]
[1641260634755,23.2781,168.27,168.18,0.28233163]
[1641260634956,23.2781,168.27,168.18,0.02233163]
[1641260635556,23.5381,168.27,168.18,0.02233163]
[1641260636056,23.2781,168.27,168.18,0.02233163]
[1641260639561,23.2781,168.27,168.18,23.19153163]
[1641260639761,23.2781,168.27,168.18,23.45153163]
[1641260640663,23.2781,168.27,168.18,23.4292]
[1641260640864,23.5381,168.27,168.18,23.4292]
[1641260641663,23.5381,168.27,168.18,26.2455982]
[1641260641864,23.2781,168.27,168.18,26.2455982]
[1641260642869,23.2781,168.27,168.18,27.4812982]
[1641260643071,23.5381,168.27,168.18,27.4812982]
[1641260643769,23.5381,168.27,168.18,27.2212982]
[1641260643973,23.5381,168.27,168.18,25.9855982]
[1641260644973,23.5381,168.27,168.18,26.2455982]
[1641260645174,0.5,168.27,168.18,26.2455982]
[1641260645374,26.06524365,168.32,168.18,26.7455982]
[1641260645796,1.67625277,168.3,168.18,26.7455982]
[1641260646199,8.56,168.34,168.19,1.2696]
[1641260646399,8.56,168.34,168.19,1.7696]
[1641260646603,8.56,168.34,168.19,2.0296]
[1641260646800,9.06,168.34,168.19,2.0296]
[1641260647000,23.4808,168.33,168.2,24.6501]
[1641260647201,23.4808,168.33,168.21,2.37949525]
[1641260647401,32.5408,168.33,168.21,2.87949525]
[1641260647602,32.5408,168.33,168.22,23.3736]
[1641260647902,34.21705277,168.33,168.22,24.6484]
[1641260648204,34.21705277,168.33,168.22,24.9084]
[1641260648404,34.47705277,168.33,168.22,24.9084]
[1641260649101,34.47705277,168.33,168.21,2.37949525]
[1641260649304,34.47705277,168.33,168.21,2.63949525]
[1641260649502,35.90374645,168.33,168.21,2.37949525]
[1641260649902,1.67625277,168.31,168.21,2.37949525]
[1641260650102,10.49625277,168.31,168.21,2.37949525]
[1641260650303,10.99625277,168.31,168.21,2.37949525]
[1641260650504,10.99625277,168.31,168.21,2.63949525]
[1641260650707,1.67625277,168.3,168.21,2.63949525]
[1641260650902,2.17625277,168.3,168.21,2.63949525]
[1641260651103,0.5,168.3,168.21,2.63949525]
[1641260651504,2.43625277,168.31,168.21,2.63949525]
[1641260652206,0.76,168.31,168.21,2.63949525]
[1641260652410,0.26,168.31,168.21,2.63949525]
[1641260652607,3.79425277,168.32,168.21,2.63949525]
[1641260652808,24.8601,168.31,168.21,2.63949525]
[1641260653007,25.1201,168.31,168.21,2.63949525]
[1641260653211,0.76,168.31,168.21,2.63949525]
[1641260653916,2.118,168.32,168.21,2.63949525]
[1641260654109,1.618,168.32,168.21,2.63949525]
[1641260654310,2.118,168.32,168.21,2.63949525]
[1641260654712,26.0286,168.32,168.22,1.2539]
[1641260655109,26.0286,168.32,168.22,1.5139]
[1641260655714,25.7686,168.32,168.22,1.5139]
[1641260656811,8.56,168.31,168.18,24.0184]
[1641260657011,8.82,168.31,168.18,24.0184]
[1641260657215,9.32,168.31,168.18,24.0184]
[1641260657611,22.7351,168.3,168.19,1.2888]
[1641260657811,22.7351,168.3,168.19,3.52949453]
[1641260658012,23.4951,168.3,168.19,3.52949453]
[1641260658216,33.3458,168.3,168.19,3.52949453]
[1641260658415,33.3458,168.3,168.19,1.2888]
[1641260658615,34.77249368,168.3,168.19,1.2888]
[1641260659014,34.77249368,168.3,168.18,24.0184]
[1641260659415,34.77249368,168.3,168.18,26.24894539]
[1641260661017,34.77249368,168.3,168.18,26.50894539]
[1641260665548,36.44874645,168.3,168.18,24.2784]
[1641260665752,41.07574645,168.3,168.18,24.2784]
[1641260666648,41.07574645,168.3,168.18,26.5346327]
[1641260666849,36.44874645,168.3,168.18,26.5346327]
[1641260667650,34.77249368,168.3,168.18,26.5346327]
[1641260668652,34.77249368,168.3,168.13,24.4633]
[1641260668852,182.711,168.29,168.14,25.5765]
[1641260669051,8.56,168.28,168.14,25.5765]
[1641260669251,9.98669368,168.28,168.11,73.3996]
[1641260669452,22.6033,168.27,168.12,23.886]
[1641260669652,8.56,168.26,168.12,26.78927991]
[1641260669952,10.74669368,168.26,168.12,23.886]
[1641260670158,26.93739368,168.25,168.12,1.2511]
[1641260670354,8.56,168.24,168.1,22.6466]
[1641260670552,90.56389368,168.24,168.1,23.9054]
[1641260670754,91.06389368,168.24,168.11,2.43762743]
[1641260671152,24.7285,168.23,168.11,2.43762743]
[1641260671352,8.56,168.22,168.11,2.43762743]
[1641260671555,10.0987,168.22,168.11,2.43762743]
[1641260671755,10.5987,168.22,168.11,2.43762743]
[1641260672161,10.3387,168.22,168.11,2.43762743]
[1641260672353,10.3387,168.22,168.11,2.69762743]
[1641260672756,10.3387,168.22,168.12,22.546]
[1641260672956,9.06,168.22,168.12,22.806]
[1641260673154,9.06,168.22,168.12,30.139]
[1641260673355,9.06,168.22,168.14,2.81641859]
[1641260673558,9.06,168.22,168.14,3.07641859]
[1641260673755,8.56,168.22,168.14,3.07641859]
[1641260675759,9.32,168.22,168.14,3.07641859]
[1641260676560,9.06,168.22,168.14,3.07641859]
[1641260676764,9.32,168.22,168.14,3.07641859]
[1641260679764,9.06,168.22,168.14,3.07641859]
[1641260679965,9.32,168.22,168.14,3.07641859]
[1641260680266,9.32,168.22,168.09,31.87220484]
[1641260680465,9.32,168.22,168.13,1.2898]
[1641260681270,24.9441,168.21,168.14,2.26320688]
[1641260681569,25.7041,168.21,168.14,2.26320688]
[1641260682165,25.7041,168.21,168.09,32.37220484]
[1641260682364,25.7041,168.21,168.1,25.9064]
[1641260682565,25.7041,168.21,168.1,26.1664]
[1641260683265,24.454,168.21,168.11,2.1648424]
[1641260683469,24.454,168.21,168.11,2.4248424]
[1641260684369,0.76,168.21,168.12,1.3534]
[1641260684570,0.5,168.21,168.12,1.6134]
[1641260684770,9.06,168.22,168.12,1.6134]
[1641260686071,9.32,168.22,168.12,1.6134]
[1641260692305,9.32,168.22,168.12,1.3534]
[1641260692508,9.32,168.22,168.11,2.1648424]
[1641260692708,24.2842,168.21,168.11,2.1648424]
[1641260692907,24.7842,168.21,168.11,2.1648424]
[1641260693106,25.0442,168.21,168.11,2.1648424]
[1641260693709,25.0442,168.21,168.11,2.4248424]
[1641260694710,25.0442,168.21,168.11,3.7156424]
[1641260695112,25.0442,168.21,168.12,24.4572]
[1641260695512,0.5,168.21,168.12,24.7172]
[1641260695710,8.56,168.28,168.12,24.7172]
[1641260696009,8.56,168.28,168.14,2.51640955]
[1641260696213,8.56,168.28,168.14,16.24540955]
[1641260696413,1.67625277,168.29,168.14,18.43210323]
[1641260696612,1.67625277,168.29,168.15,25.7851]
[1641260696810,1.67625277,168.29,168.16,35.99229799]
[1641260697011,1.67625277,168.29,168.17,2.5928616]
[1641260697212,1.67625277,168.29,168.17,2.58255476]
[1641260697413,10.23625277,168.32,168.17,3.34255476]
[1641260697611,10.99625277,168.32,168.18,24.7962]
[1641260698012,9.06,168.32,168.18,25.5562]
[1641260698414,23.16919145,168.32,168.18,25.5562]
[1641260699414,23.42919145,168.32,168.18,25.5562]
[1641260700714,23.42919145,168.32,168.18,25.0562]
[1641260700919,23.42919145,168.32,168.18,25.5562]
[1641260701215,23.42919145,168.32,168.18,25.2962]
[1641260701415,24.85588513,168.32,168.18,25.2962]
[1641260702615,23.42919145,168.32,168.18,25.5562]
[1641260703416,9.06,168.32,168.18,25.5562]
[1641260704818,9.32,168.32,168.18,25.5562]
[1641260705419,10.74669368,168.32,168.18,25.2962]
[1641260705619,10.74669368,168.32,168.18,24.7962]
[1641260705819,10.74669368,168.32,168.18,25.2962]
[1641260706019,9.32,168.32,168.18,25.2962]
[1641260706627,9.32,168.32,168.18,25.5562]
[1641260706824,9.32,168.32,168.18,25.0562]
[1641260707228,9.32,168.32,168.18,25.5562]
[1641260708225,9.06,168.32,168.18,25.5562]
[1641260708426,0.5,168.32,168.19,8.56]
[1641260708626,0.5,168.32,168.21,2.22800882]
[1641260708828,105.0886,168.34,168.22,1.3255]
[1641260709026,105.0886,168.34,168.22,1.5855]
[1641260709227,105.0886,168.34,168.22,2.0855]
[1641260709428,1.67625277,168.35,168.23,31.51786118]
[1641260709634,1.67625277,168.35,168.25,3.02799871]
[1641260709829,2.17625277,168.35,168.25,3.52799871]
[1641260710030,2.17625277,168.35,168.25,3.78799871]
[1641260710428,10.23625277,168.39,168.26,24.4133]
[1641260710829,10.73625277,168.39,168.26,31.4083]
[1641260711230,10.73625277,168.39,168.28,2.58223308]
[1641260711431,9.06,168.39,168.28,32.49080884]
[1641260711633,1.67625277,168.41,168.29,8.56]
[1641260711833,1.67625277,168.41,168.29,32.0582]
[1641260712033,1.67625277,168.41,168.29,32.8182]
[1641260712632,1.67625277,168.42,168.29,34.1747]
[1641260712832,15.37705785,168.41,168.29,34.1747]
[1641260713032,15.63705785,168.41,168.29,34.1747]
[1641260713234,16.13705785,168.41,168.29,34.1747]
[1641260713832,15.63705785,168.41,168.29,34.1747]
[1641260715336,16.13705785,168.41,168.29,34.1747]
[1641260715736,0.5,168.41,168.29,34.1747]
[1641260715937,2.17625277,168.42,168.29,34.1747]
[1641260716137,0.5,168.42,168.29,34.1747]
[1641260716338,10.73625277,168.43,168.29,34.1747]
[1641260717057,9.06,168.43,168.29,34.1747]
[1641260717464,9.32,168.43,168.29,34.1747]
[1641260717861,9.32,168.43,168.29,33.9147]
[1641260718259,24.1668,168.42,168.29,33.9147]
[1641260718461,24.9268,168.42,168.29,33.9147]
[1641260719062,24.6668,168.42,168.29,34.1747]
[1641260719262,0.5,168.42,168.29,34.1747]
[1641260719461,1.67625277,168.43,168.29,34.1747]
[1641260719670,1.67625277,168.43,168.29,38.8427]
[1641260719966,1.92669368,168.43,168.29,38.8427]
[1641260720164,13.28703401,168.43,168.29,38.8427]
[1641260720364,11.86034033,168.43,168.29,38.8427]
[1641260720665,79.59305277,168.45,168.29,38.8427]
[1641260720869,2.17625277,168.45,168.3,78.2468]
[1641260721066,2.17625277,168.45,168.31,11.45586479]
[1641260721268,1.67625277,168.45,168.32,24.6408]
[1641260721467,1.67625277,168.45,168.33,37.72390191]
[1641260721668,25.66435277,168.47,168.35,2.68405522]
[1641260721866,1.67625277,168.47,168.37,31.04715903]
[1641260722067,1.67625277,168.47,168.39,2.89545591]
[1641260722470,3.33417239,168.51,168.39,12.21545591]
[1641260722471,1.67625277,168.49,168.39,12.21545591]
[1641260722867,2.17625277,168.49,168.39,12.21545591]
[1641260723069,1.67625277,168.49,168.39,12.21545591]
[1641260723269,93.7,168.52,168.39,12.21545591]
[1641260724169,93.7,168.52,168.4,107.0]
[1641260724372,1.67625277,168.53,168.42,2.73339871]
[1641260724569,1.67625277,168.55,168.43,8.56]
[1641260724974,1.67625277,168.55,168.43,9.32]
[1641260725172,1.67625277,168.58,168.43,9.32]
[1641260725372,2.17625277,168.58,168.45,2.4724115]
[1641260725574,2.17625277,168.58,168.47,26.82988209]